[Event "DVM U14 2024"]
[Site "Heidelberg"]
[Date "2024.12.27"]
[Round "2"]
[White "Splitt, Albert"]
[Black "Arora, Ryan"]
[Result "0-1"]
[ECO "D00"]
[WhiteElo "1571"]
[BlackElo "1390"]
[Annotator "NA RC"]
[PlyCount "64"]
[EventDate "2024.12.23"]
[EventType "team-tourn"]
[EventRounds "7"]
[EventCountry "GER"]
[SourceTitle "playchess.com"]
[Source "ChessBase"]
[SourceQuality "1"]
[TimeControl "40/5400+30:1800+30"]

1. d4 {[%emt 0:00:05]} Nf6 {[%emt 0:00:05]} 2. Nc3 {[%emt 0:00:07]} d5 {[%emt 0:00:54]} 3. Bf4 {[%emt 0:00:13]} e6 {[%emt 0:00:52]} 4. Nf3 {[%emt 0:03:24]} Bb4 {[%emt 0:01:36]} 5. Bd2 {[%emt 0:00:30]} Nc6 {[%emt 0:01:23]} 6. a3 {[%emt 0:00:21]} Ba5 {[%emt 0:03:32]} 7. e3 {[%emt 0:00:45]} Bd7 {[%emt 0:02:26]} 8. Bd3 {[%emt 0:00:53]} Ne7 {[%emt 0:06:11]} 9. O-O {[%emt 0:03:50]} Bb6 {[%emt 0:10:49]} 10. b4 {[%emt 0:03:01]} Ng6 {[%emt 0:04:37]} 11. Re1 {[%emt 0:01:22]} a6 {[%emt 0:03:29]} 12. e4 {[%emt 0:01:24]} dxe4 {[%emt 0:00:35]} 13. Nxe4 {[%emt 0:00:11]} Bc6 {[%emt 0:03:20]} 14. Nxf6+ {[%emt 0:02:57]} Qxf6 {[%emt 0:00:54]} 15. Bg5 {[%emt 0:00:15]} Bxf3 {[%emt 0:01:04]} 16. Qd2 {[%emt 0:05:28]} Qxd4 {[%emt 0:02:12]} 17. gxf3 {[%emt 0:00:27]} Ne5 {[%emt 0:05:39]} 18. Qe2 {[%emt 0:06:06]} Nxd3 {[%emt 0:01:38]} 19. cxd3 {[%emt 0:01:08]} h6 {[%emt 0:03:15]} 20. Be3 {[%emt 0:00:40]} Qd6 {[%emt 0:00:57]} 21. d4 {[%emt 0:04:44]} c6 {[%emt 0:03:37]} 22. Rad1 {[%emt 0:01:07]} Bc7 {[%emt 0:01:04]} 23. f4 {[%emt 0:00:10]} g5 {[%emt 0:01:15]} 24. f3 {[%emt 0:06:52]} gxf4 {[%emt 0:02:34]} 25. Bf2 {[%emt 0:00:32]} Rg8+ {[%emt 0:01:40]} 26. Kh1 {[%emt 0:01:10]} Qd5 {[%emt 0:09:44]} 27. Qd3 {[%emt 0:02:36]} O-O-O {[%emt 0:03:18]} 28. Rc1 {[%emt 0:04:26]} Bb6 {[%emt 0:01:55]} 29. Re5 {[%emt 0:01:38]} Qxe5 {[%emt 0:01:12]} 30. Rxc6+ {[%emt 0:01:41]} bxc6 {[%emt 0:03:15]} 31. Qxa6+ {[%emt 0:00:27]} Kc7 {[%emt 0:00:04]} 32. dxe5 {[%emt 0:00:45]} Rd1+ {[%emt 0:00:07]} 0-1

[Event "DVM U14 2024"]
[Site "Heidelberg"]
[Date "2024.12.27"]
[Round "2"]
[White "Luccone, Constantin"]
[Black "Dersewski, Jonas"]
[Result "0-1"]
[ECO "C05"]
[WhiteElo "1567"]
[BlackElo "1738"]
[Annotator "NA RC"]
[PlyCount "52"]
[EventDate "2024.12.23"]
[EventType "team-tourn"]
[EventRounds "7"]
[EventCountry "GER"]
[SourceTitle "playchess.com"]
[Source "ChessBase"]
[SourceQuality "1"]
[TimeControl "40/5400+30:1800+30"]

1. e4 {[%emt 0:00:05]} e6 {[%emt 0:00:04]} 2. d4 {[%emt 0:00:04]} d5 {[%emt 0:00:04]} 3. Nd2 {[%emt 0:00:03]} Nf6 {[%emt 0:00:07]} 4. e5 {[%emt 0:00:05]} Nfd7 {[%emt 0:00:06]} 5. f4 {[%emt 0:00:09]} c5 {[%emt 0:00:06]} 6. c3 {[%emt 0:00:05]} Nc6 {[%emt 0:00:05]} 7. Ndf3 {[%emt 0:00:27]} cxd4 {[%emt 0:00:14]} 8. cxd4 {[%emt 0:00:10]} Qb6 {[%emt 0:00:05]} 9. g3 {[%emt 0:00:36]} f6 {[%emt 0:00:25]} 10. Kf2 {[%emt 0:00:16]} fxe5 {[%emt 0:00:27]} 11. fxe5 {[%emt 0:00:16]} Ndxe5 {[%emt 0:00:55]} 12. Kg2 {[%emt 0:00:26]} Nxf3 {[%emt 0:05:35]} 13. Nxf3 {[%emt 0:00:28]} Bd7 {[%emt 0:07:48]} 14. Rb1 {[%emt 0:03:28]} Bd6 {[%emt 0:04:35]} 15. Be3 {[%emt 0:03:41]} Ne7 {[%emt 0:15:51]} 16. Qc2 {[%emt 0:02:54]} Nf5 {[%emt 0:03:53]} 17. Bf2 {[%emt 0:00:43]} O-O {[%emt 0:09:39]} 18. Bd3 {[%emt 0:01:11]} Rac8 {[%emt 0:01:09]} 19. Qd1 {[%emt 0:01:11]} Qd8 {[%emt 0:13:24]} 20. h4 {[%emt 0:01:56]} Qf6 {[%emt 0:10:52]} 21. g4 {[%emt 0:06:12]} Ne7 {[%emt 0:01:06]} 22. Rh3 {[%emt 0:02:13]} e5 {[%emt 0:01:13]} 23. dxe5 {[%emt 0:00:32]} Bxe5 {[%emt 0:00:17]} 24. Nxe5 {[%emt 0:03:36]} Qxe5 {[%emt 0:03:23]} 25. Bxa7 {[%emt 0:07:01]} d4 {[%emt 0:03:53]} 26. Bxd4 {[%emt 0:02:31]} Bc6+ {[%emt 0:00:09]} 0-1

[Event "DVM U14 2024"]
[Site "Heidelberg"]
[Date "2024.12.27"]
[Round "2"]
[White "Zielke, Constantin"]
[Black "Kalinski, Jan"]
[Result "0-1"]
[ECO "B90"]
[WhiteElo "1543"]
[BlackElo "1700"]
[Annotator "NA RC"]
[PlyCount "88"]
[EventDate "2024.12.23"]
[EventType "team-tourn"]
[EventRounds "7"]
[EventCountry "GER"]
[SourceTitle "playchess.com"]
[Source "ChessBase"]
[SourceQuality "1"]
[TimeControl "40/5400+30:1800+30"]

1. e4 {[%emt 0:00:02]} c5 {[%emt 0:00:10]} 2. Nf3 {[%emt 0:00:05]} Nf6 {[%emt 0:02:22]} 3. Nc3 {[%emt 0:00:17]} d6 {[%emt 0:00:18]} 4. d4 {[%emt 0:00:09]} cxd4 {[%emt 0:02:44]} 5. Nxd4 {[%emt 0:00:11]} e5 {[%emt 0:00:09]} 6. Nf3 {[%emt 0:00:16]} Be7 {[%emt 0:00:28]} 7. Bc4 {[%emt 0:00:56]} O-O {[%emt 0:01:34]} 8. Be3 {[%emt 0:01:03]} a6 {[%emt 0:01:19]} 9. h3 {[%emt 0:00:40]} Nbd7 {[%emt 0:01:42]} 10. O-O {[%emt 0:00:59]} b5 {[%emt 0:00:15]} 11. Bb3 {[%emt 0:00:11]} Bb7 {[%emt 0:00:09]} 12. Qd3 {[%emt 0:01:34]} Nb6 {[%emt 0:02:03]} 13. Rad1 {[%emt 0:03:16]} b4 {[%emt 0:00:13]} 14. Bxb6 {[%emt 0:01:55]} Qxb6 {[%emt 0:00:30]} 15. Nd5 {[%emt 0:00:07]} Nxd5 {[%emt 0:05:37]} 16. Bxd5 {[%emt 0:01:49]} Rac8 {[%emt 0:01:38]} 17. Bxb7 {[%emt 0:02:37]} Qxb7 {[%emt 0:00:11]} 18. Nd2 {[%emt 0:00:14]} Rfd8 {[%emt 0:03:20]} 19. Nc4 {[%emt 0:04:50]} Qc6 {[%emt 0:01:54]} 20. Ne3 {[%emt 0:00:56]} Bg5 {[%emt 0:04:14]} 21. Rc1 {[%emt 0:17:39]} Bxe3 {[%emt 0:22:28]} 22. Qxe3 {[%emt 0:03:52]} Qc4 {[%emt 0:00:52]} 23. b3 {[%emt 0:04:53]} Qc5 {[%emt 0:01:22]} 24. Qd3 {[%emt 0:01:11]} Qa5 {[%emt 0:00:37]} 25. Ra1 {[%emt 0:04:05]} Rc3 {[%emt 0:00:29]} 26. Qe2 {[%emt 0:00:36]} Rdc8 {[%emt 0:01:33]} 27. Rfc1 {[%emt 0:01:10]} Qb6 {[%emt 0:00:44]} 28. a3 {[%emt 0:00:43]} a5 {[%emt 0:03:26]} 29. axb4 {[%emt 0:00:36]} axb4 {[%emt 0:00:14]} 30. Ra6 {[%emt 0:00:18]} Qc5 {[%emt 0:02:35]} 31. Qd2 {[%emt 0:01:27]} Rd8 {[%emt 0:05:25]} 32. Kh1 {[%emt 0:05:29]} h6 {[%emt 0:01:26]} 33. f3 {[%emt 0:00:56]} d5 {[%emt 0:03:12]} 34. exd5 {[%emt 0:01:18]} Rxd5 {[%emt 0:00:20]} 35. Qe2 {[%emt 0:00:37]} Rxb3 {[%emt 0:04:02]} 36. cxb3 {[%emt 0:14:19]} Qxc1+ {[%emt 0:00:09]} 37. Kh2 {[%emt 0:00:05]} Qf4+ {[%emt 0:01:21]} 38. Kg1 {[%emt 0:02:36]} Qd4+ {[%emt 0:00:37]} 39. Kh2 {[%emt 0:00:17]} Kh7 {[%emt 0:02:36]} 40. Rc6 {[%emt 0:05:11]} Qf4+ {[%emt 0:00:40]} 41. Kg1 {[%emt 0:30:12]} Rd2 {[%emt 0:30:36]} 42. Qe1 {[%emt 0:03:41]} Qd4+ {[%emt 0:00:50]} 43. Kh2 {[%emt 0:00:10]} Rd1 {[%emt 0:00:52]} 44. Qg3 {[%emt 0:00:40]} Qg1# {[%emt 0:00:24]} 0-1

[Event "DVM U14 2024"]
[Site "Heidelberg"]
[Date "2024.12.27"]
[Round "2"]
[White "Schriefer, Leo Hans"]
[Black "Derhay, Davyd"]
[Result "1/2-1/2"]
[ECO "C56"]
[WhiteElo "1477"]
[BlackElo "1665"]
[Annotator "NA RC"]
[PlyCount "84"]
[EventDate "2024.12.23"]
[EventType "team-tourn"]
[EventRounds "7"]
[EventCountry "GER"]
[SourceTitle "playchess.com"]
[Source "ChessBase"]
[SourceQuality "1"]
[TimeControl "40/5400+30:1800+30"]

1. e4 {[%emt 0:00:13]} e5 {[%emt 0:00:04]} 2. Nf3 {[%emt 0:00:23]} Nc6 {[%emt 0:00:07]} 3. d4 {[%emt 0:00:05]} exd4 {[%emt 0:00:39]} 4. Bc4 {[%emt 0:00:14]} Nf6 {[%emt 0:01:54]} 5. O-O {[%emt 0:00:09]} Be7 {[%emt 0:01:49]} 6. Re1 {[%emt 0:00:51]} d6 {[%emt 0:03:03]} 7. Nxd4 {[%emt 0:00:20]} Na5 {[%emt 0:03:35]} 8. Bb3 {[%emt 0:02:40]} Nxb3 {[%emt 0:00:39]} 9. Nxb3 {[%emt 0:00:21]} O-O {[%emt 0:00:25]} 10. Nc3 {[%emt 0:00:36]} b6 {[%emt 0:02:17]} 11. Nd5 {[%emt 0:07:13]} Bb7 {[%emt 0:00:46]} 12. Nxe7+ {[%emt 0:00:18]} Qxe7 {[%emt 0:00:10]} 13. f3 {[%emt 0:00:12]} h6 {[%emt 0:02:20]} 14. c3 {[%emt 0:01:10]} Rfe8 {[%emt 0:00:58]} 15. Bf4 {[%emt 0:01:19]} Nh5 {[%emt 0:02:24]} 16. Qd2 {[%emt 0:07:03]} Qf6 {[%emt 0:07:20]} 17. Be3 {[%emt 0:01:14]} Rad8 {[%emt 0:01:51]} 18. Rad1 {[%emt 0:02:32]} d5 {[%emt 0:06:19]} 19. exd5 {[%emt 0:02:00]} Rxd5 {[%emt 0:05:29]} 20. Qf2 {[%emt 0:01:19]} Rf5 {[%emt 0:10:04]} 21. Bd4 {[%emt 0:05:57]} Rxe1+ {[%emt 0:01:40]} 22. Rxe1 {[%emt 0:00:42]} Qg6 {[%emt 0:00:37]} 23. Kh1 {[%emt 0:04:24]} c5 {[%emt 0:13:16]} 24. Be5 {[%emt 0:01:51]} Nf4 {[%emt 0:04:02]} 25. Bxf4 {[%emt 0:00:48]} Rxf4 {[%emt 0:00:04]} 26. Qg3 {[%emt 0:00:38]} Qd6 {[%emt 0:03:34]} 27. h3 {[%emt 0:02:44]} c4 {[%emt 0:00:31]} 28. Nc1 {[%emt 0:01:46]} Qd2 {[%emt 0:00:52]} 29. Rf1 {[%emt 0:02:02]} Kh7 {[%emt 0:01:16]} 30. Qf2 {[%emt 0:00:37]} Qd7 {[%emt 0:00:48]} 31. Ne2 {[%emt 0:02:01]} Rf5 {[%emt 0:02:28]} 32. Nd4 {[%emt 0:00:37]} Re5 {[%emt 0:00:34]} 33. Re1 {[%emt 0:02:38]} Qe7 {[%emt 0:00:27]} 34. Rxe5 {[%emt 0:03:33]} Qxe5 {[%emt 0:00:06]} 35. Qe2 {[%emt 0:00:13]} Qf4 {[%emt 0:00:55]} 36. Qxc4 {[%emt 0:04:38]} Qc1+ {[%emt 0:00:12]} 37. Kh2 {[%emt 0:00:06]} Qxb2 {[%emt 0:00:42]} 38. Qxf7 {[%emt 0:00:32]} Qxc3 {[%emt 0:00:12]} 39. Qxb7 {[%emt 0:00:34]} Qxd4 {[%emt 0:00:07]} 40. Qxa7 {[%emt 0:00:12]} Qe5+ {[%emt 0:00:29]} 41. Kg1 {[%emt 0:31:14]} Qe1+ {[%emt 0:30:07]} 42. Kh2 {[%emt 0:00:17]} Qe5+ {[%emt 0:00:07]} 1/2-1/2

[Event "DVM U14 2024"]
[Site "Heidelberg"]
[Date "2024.12.27"]
[Round "2"]
[White "Mosch, Cornelius"]
[Black "Belenki, Janis"]
[Result "0-1"]
[ECO "B70"]
[WhiteElo "1405"]
[BlackElo "1611"]
[Annotator "NA RC"]
[PlyCount "114"]
[EventDate "2024.12.23"]
[EventType "team-tourn"]
[EventRounds "7"]
[EventCountry "GER"]
[SourceTitle "playchess.com"]
[Source "ChessBase"]
[SourceQuality "1"]
[TimeControl "40/5400+30:1800+30"]

1. e4 {[%emt 0:00:06]} c5 {[%emt 0:00:07]} 2. Nf3 {[%emt 0:00:03]} d6 {[%emt 0:00:05]} 3. d4 {[%emt 0:00:08]} cxd4 {[%emt 0:00:03]} 4. Nxd4 {[%emt 0:00:07]} Nf6 {[%emt 0:00:04]} 5. Nc3 {[%emt 0:00:07]} g6 {[%emt 0:00:08]} 6. Bb5+ {[%emt 0:00:13]} Bd7 {[%emt 0:00:34]} 7. Bg5 {[%emt 0:01:17]} Bg7 {[%emt 0:02:14]} 8. Qd2 {[%emt 0:19:59]} Bxb5 {[%emt 0:06:34]} 9. Ndxb5 {[%emt 0:00:00]} a6 {[%emt 0:01:35]} 10. Nd4 {[%emt 0:00:13]} h6 {[%emt 0:01:52]} 11. Be3 {[%emt 0:00:00]} Ng4 {[%emt 0:00:37]} 12. O-O-O {[%emt 0:00:00]} Nxe3 {[%emt 0:00:23]} 13. Qxe3 {[%emt 0:00:00]} Nc6 {[%emt 0:01:18]} 14. Nxc6 {[%emt 0:00:00]} bxc6 {[%emt 0:00:05]} 15. f4 {[%emt 0:00:00]} Qa5 {[%emt 0:02:07]} 16. Rd3 {[%emt 0:00:00]} Bxc3 {[%emt 0:00:57]} 17. Rxc3 {[%emt 0:00:11]} Qxa2 {[%emt 0:00:51]} 18. Ra3 {[%emt 0:00:08]} Qe6 {[%emt 0:01:19]} 19. Re1 {[%emt 0:00:35]} O-O {[%emt 0:02:17]} 20. Qd4 {[%emt 0:01:00]} c5 {[%emt 0:02:33]} 21. Qd3 {[%emt 0:01:28]} Qf6 {[%emt 0:04:21]} 22. g3 {[%emt 0:00:49]} Rfb8 {[%emt 0:02:03]} 23. Qc3 {[%emt 0:06:01]} Qxc3 {[%emt 0:00:43]} 24. Rxc3 {[%emt 0:00:06]} Rb5 {[%emt 0:00:46]} 25. g4 {[%emt 0:01:44]} Rab8 {[%emt 0:00:50]} 26. b3 {[%emt 0:01:54]} Kg7 {[%emt 0:02:13]} 27. Rd3 {[%emt 0:00:11]} c4 {[%emt 0:06:22]} 28. bxc4 {[%emt 0:04:55]} Rb4 {[%emt 0:00:20]} 29. Ra3 {[%emt 0:00:42]} Rxc4 {[%emt 0:01:06]} 30. c3 {[%emt 0:00:31]} a5 {[%emt 0:04:23]} 31. Kc2 {[%emt 0:00:33]} Rbc8 {[%emt 0:01:30]} 32. h4 {[%emt 0:08:55]} a4 {[%emt 0:01:51]} 33. Kd3 {[%emt 0:02:36]} Kf8 {[%emt 0:03:02]} 34. Rea1 {[%emt 0:03:57]} d5 {[%emt 0:04:34]} 35. Re1 {[%emt 0:09:24]} dxe4+ {[%emt 0:02:16]} 36. Rxe4 {[%emt 0:01:50]} Rxe4 {[%emt 0:00:07]} 37. Kxe4 {[%emt 0:00:09]} Rc4+ {[%emt 0:00:08]} 38. Ke3 {[%emt 0:00:54]} e6 {[%emt 0:01:06]} 39. h5 {[%emt 0:00:24]} gxh5 {[%emt 0:00:16]} 40. gxh5 {[%emt 0:00:05]} Ke7 {[%emt 0:00:39]} 41. Ra2 {[%emt 0:33:48]} Kd6 {[%emt 0:32:52]} 42. Kd3 {[%emt 0:00:25]} Rxf4 {[%emt 0:01:23]} 43. c4 {[%emt 0:00:18]} a3 {[%emt 0:02:48]} 44. Rd2 {[%emt 0:11:37]} Kc5 {[%emt 0:01:03]} 45. Rc2 {[%emt 0:00:13]} Rh4 {[%emt 0:00:47]} 46. Rf2 {[%emt 0:04:15]} f5 {[%emt 0:01:22]} 47. Re2 {[%emt 0:00:18]} a2 {[%emt 0:00:13]} 48. Re5+ {[%emt 0:04:13]} Kb4 {[%emt 0:02:17]} 49. Rb5+ {[%emt 0:00:16]} Ka3 {[%emt 0:00:21]} 50. Ra5+ {[%emt 0:00:17]} Kb2 {[%emt 0:00:14]} 51. Rb5+ {[%emt 0:00:10]} Kc1 {[%emt 0:00:11]} 52. Ra5 {[%emt 0:00:15]} Rh3+ {[%emt 0:00:11]} 53. Kd4 {[%emt 0:00:09]} Kb2 {[%emt 0:00:10]} 54. Ke5 {[%emt 0:06:00]} a1=Q {[%emt 0:00:23]} 55. Rxa1 {[%emt 0:00:08]} Kxa1 {[%emt 0:00:03]} 56. Kxe6 {[%emt 0:00:29]} f4 {[%emt 0:00:10]} 57. Kf5 {[%emt 0:00:09]} f3 {[%emt 0:00:27]} 0-1

[Event "DVM U14 2024"]
[Site "Heidelberg"]
[Date "2024.12.27"]
[Round "2"]
[White "Zhou, Louis Yuchen"]
[Black "Fridlin, Daniel"]
[Result "0-1"]
[ECO "B95"]
[WhiteElo "1215"]
[BlackElo "1789"]
[Annotator "NA RC"]
[PlyCount "68"]
[EventDate "2024.12.23"]
[EventType "team-tourn"]
[EventRounds "7"]
[EventCountry "GER"]
[SourceTitle "playchess.com"]
[Source "ChessBase"]
[SourceQuality "1"]
[TimeControl "40/5400+30:1800+30"]

1. e4 {[%emt 0:00:07]} c5 {[%emt 0:00:02]} 2. Nf3 {[%emt 0:00:03]} d6 {[%emt 0:00:05]} 3. d4 {[%emt 0:00:10]} cxd4 {[%emt 0:00:06]} 4. Nxd4 {[%emt 0:00:12]} Nf6 {[%emt 0:00:05]} 5. Nc3 {[%emt 0:00:08]} a6 {[%emt 0:00:15]} 6. Bc4 {[%emt 0:00:12]} e6 {[%emt 0:00:27]} 7. Bg5 {[%emt 0:00:43]} Be7 {[%emt 0:00:58]} 8. O-O {[%emt 0:01:26]} O-O {[%emt 0:01:02]} 9. Re1 {[%emt 0:00:33]} Qc7 {[%emt 0:03:22]} 10. Qd3 {[%emt 0:01:15]} Nc6 {[%emt 0:01:28]} 11. Rad1 {[%emt 0:03:14]} Ne5 {[%emt 0:00:29]} 12. Qg3 {[%emt 0:01:40]} Nxc4 {[%emt 0:04:30]} 13. f4 {[%emt 0:09:07]} e5 {[%emt 0:04:38]} 14. Nf3 {[%emt 0:04:35]} exf4 {[%emt 0:00:54]} 15. Qxf4 {[%emt 0:00:37]} Ne5 {[%emt 0:03:31]} 16. Bxf6 {[%emt 0:02:54]} Bxf6 {[%emt 0:02:05]} 17. Nd5 {[%emt 0:00:51]} Nxf3+ {[%emt 0:01:48]} 18. Qxf3 {[%emt 0:00:18]} Qc5+ {[%emt 0:01:33]} 19. Kh1 {[%emt 0:00:21]} Bxb2 {[%emt 0:00:46]} 20. Rf1 {[%emt 0:04:52]} Be6 {[%emt 0:02:36]} 21. Ne7+ {[%emt 0:01:56]} Kh8 {[%emt 0:00:35]} 22. Nf5 {[%emt 0:04:07]} Bxf5 {[%emt 0:01:03]} 23. exf5 {[%emt 0:00:24]} Be5 {[%emt 0:00:18]} 24. Rd5 {[%emt 0:00:49]} Qxc2 {[%emt 0:00:18]} 25. f6 {[%emt 0:04:11]} Bxf6 {[%emt 0:00:42]} 26. Rxd6 {[%emt 0:00:21]} b5 {[%emt 0:00:57]} 27. g3 {[%emt 0:01:29]} Rfd8 {[%emt 0:01:14]} 28. Rb6 {[%emt 0:00:44]} Kg8 {[%emt 0:03:07]} 29. Re1 {[%emt 0:03:36]} Rac8 {[%emt 0:01:35]} 30. Qe3 {[%emt 0:01:02]} Bd4 {[%emt 0:01:38]} 31. Qe7 {[%emt 0:00:36]} Bxb6 {[%emt 0:00:12]} 32. Rf1 {[%emt 0:01:36]} Qc6+ {[%emt 0:00:19]} 33. Qe4 {[%emt 0:00:16]} Qxe4+ {[%emt 0:00:05]} 34. Rf3 {[%emt 0:00:06]} Qxf3# {[%emt 0:00:08]} 0-1

[Event "DVM U14 2024"]
[Site "Heidelberg"]
[Date "2024.12.27"]
[Round "2"]
[White "Nawrath, Lars"]
[Black "Petzold, Gustav"]
[Result "1/2-1/2"]
[ECO "D02"]
[WhiteElo "1189"]
[BlackElo "935"]
[Annotator "NA RC"]
[PlyCount "58"]
[EventDate "2024.12.23"]
[EventType "team-tourn"]
[EventRounds "7"]
[EventCountry "GER"]
[SourceTitle "playchess.com"]
[Source "ChessBase"]
[SourceQuality "1"]
[TimeControl "40/5400+30:1800+30"]

1. d4 {[%emt 0:00:06]} Nf6 {[%emt 0:00:05]} 2. Bf4 {[%emt 0:00:06]} e6 {[%emt 0:00:07]} 3. e3 {[%emt 0:00:16]} d5 {[%emt 0:00:08]} 4. Nf3 {[%emt 0:00:41]} Nc6 {[%emt 0:00:10]} 5. Bd3 {[%emt 0:00:33]} Bd6 {[%emt 0:01:45]} 6. Bg3 {[%emt 0:00:06]} O-O {[%emt 0:00:16]} 7. Nbd2 {[%emt 0:00:15]} Re8 {[%emt 0:03:06]} 8. c3 {[%emt 0:01:35]} e5 {[%emt 0:01:55]} 9. e4 {[%emt 0:01:54]} dxe4 {[%emt 0:01:18]} 10. Nxe4 {[%emt 0:00:12]} exd4 {[%emt 0:00:10]} 11. Qc2 {[%emt 0:00:29]} Bf5 {[%emt 0:00:50]} 12. Nfd2 {[%emt 0:00:29]} Bxe4 {[%emt 0:07:05]} 13. Nxe4 {[%emt 0:00:07]} Bxg3 {[%emt 0:00:53]} 14. hxg3 {[%emt 0:00:09]} Qd5 {[%emt 0:02:03]} 15. f3 {[%emt 0:01:25]} Qe5 {[%emt 0:00:35]} 16. O-O-O {[%emt 0:00:32]} Nxe4 {[%emt 0:02:47]} 17. Bxe4 {[%emt 0:03:28]} g6 {[%emt 0:00:00]} 18. Rh3 {[%emt 0:04:19]} Rad8 {[%emt 0:02:15]} 19. Bxc6 {[%emt 0:01:05]} bxc6 {[%emt 0:00:48]} 20. cxd4 {[%emt 0:00:37]} Rxd4 {[%emt 0:01:09]} 21. Rhh1 {[%emt 0:07:35]} Qe3+ {[%emt 0:06:58]} 22. Kb1 {[%emt 0:00:21]} Rxd1+ {[%emt 0:02:06]} 23. Rxd1 {[%emt 0:00:19]} Qe2 {[%emt 0:00:18]} 24. Rc1 {[%emt 0:03:10]} Qxc2+ {[%emt 0:00:12]} 25. Rxc2 {[%emt 0:00:10]} Re1+ {[%emt 0:00:05]} 26. Rc1 {[%emt 0:00:10]} Re2 {[%emt 0:00:58]} 27. Rc2 {[%emt 0:00:06]} Re1+ {[%emt 0:00:08]} 28. Rc1 {[%emt 0:00:05]} Re2 {[%emt 0:00:09]} 29. Rc2 {[%emt 0:05:31]} Re1+ {[%emt 0:02:31]} 1/2-1/2

[Event "DVM U14 2024"]
[Site "Heidelberg"]
[Date "2024.12.28"]
[Round "3"]
[White "Noennig, Jakob"]
[Black "Haertel, Leon"]
[Result "1-0"]
[ECO "B35"]
[WhiteElo "2065"]
[BlackElo "1839"]
[Annotator "NA RC"]
[PlyCount "87"]
[EventDate "2024.12.23"]
[EventType "team-tourn"]
[EventRounds "7"]
[EventCountry "GER"]
[SourceTitle "playchess.com"]
[Source "ChessBase"]
[SourceQuality "1"]
[TimeControl "40/5400+30:1800+30"]

1. e4 {[%emt 0:00:02]} c5 {[%emt 0:00:07]} 2. Nf3 {[%emt 0:00:05]} Nc6 {[%emt 0:00:05]} 3. d4 {[%emt 0:00:07]} cxd4 {[%emt 0:00:09]} 4. Nxd4 {[%emt 0:00:05]} g6 {[%emt 0:00:09]} 5. Nc3 {[%emt 0:00:07]} Bg7 {[%emt 0:00:12]} 6. Be3 {[%emt 0:00:09]} Nf6 {[%emt 0:00:23]} 7. Bc4 {[%emt 0:00:20]} Qa5 {[%emt 0:01:47]} 8. O-O {[%emt 0:03:12]} d6 {[%emt 0:01:36]} 9. h3 {[%emt 0:02:05]} O-O {[%emt 0:01:39]} 10. Bb3 {[%emt 0:01:15]} Bd7 {[%emt 0:01:14]} 11. f4 {[%emt 0:02:49]} Nxd4 {[%emt 0:07:14]} 12. Bxd4 {[%emt 0:00:12]} Bc6 {[%emt 0:00:10]} 13. Qd3 {[%emt 0:02:35]} Nd7 {[%emt 0:06:50]} 14. Bxg7 {[%emt 0:09:47]} Kxg7 {[%emt 0:00:44]} 15. Rad1 {[%emt 0:12:01]} Rad8 {[%emt 0:26:22]} 16. Kh1 {[%emt 0:05:51]} Nf6 {[%emt 0:13:03]} 17. Rfe1 {[%emt 0:10:36]} e6 {[%emt 0:11:59]} 18. Qg3 {[%emt 0:05:11]} d5 {[%emt 0:04:28]} 19. e5 {[%emt 0:05:03]} Nh5 {[%emt 0:08:51]} 20. Qf2 {[%emt 0:01:54]} Qb6 {[%emt 0:06:10]} 21. Qxb6 {[%emt 0:10:44]} axb6 {[%emt 0:00:08]} 22. Ne2 {[%emt 0:00:15]} Bb5 {[%emt 0:02:21]} 23. Nd4 {[%emt 0:09:55]} Ba6 {[%emt 0:00:29]} 24. Kh2 {[%emt 0:02:53]} Nxf4 {[%emt 0:01:03]} 25. g3 {[%emt 0:00:04]} Nh5 {[%emt 0:00:10]} 26. Re3 {[%emt 0:04:05]} Kg8 {[%emt 0:01:10]} 27. Rf3 {[%emt 0:01:21]} Ng7 {[%emt 0:01:10]} 28. g4 {[%emt 0:00:05]} Rc8 {[%emt 0:01:04]} 29. c3 {[%emt 0:02:55]} Rc5 {[%emt 0:01:05]} 30. Rd2 {[%emt 0:00:37]} Rd8 {[%emt 0:00:34]} 31. Rdf2 {[%emt 0:00:15]} Rd7 {[%emt 0:00:43]} 32. a3 {[%emt 0:00:19]} h5 {[%emt 0:00:43]} 33. Kg3 {[%emt 0:00:39]} Rcc7 {[%emt 0:00:40]} 34. Bc2 {[%emt 0:01:52]} Kh7 {[%emt 0:00:34]} 35. Rf4 {[%emt 0:03:14]} Bc4 {[%emt 0:01:10]} 36. Nf3 {[%emt 0:01:18]} Kh6 {[%emt 0:01:11]} 37. Kh4 {[%emt 0:01:26]} hxg4 {[%emt 0:00:48]} 38. hxg4 {[%emt 0:00:11]} Kh7 {[%emt 0:00:17]} 39. Ng5+ {[%emt 0:00:09]} Kg8 {[%emt 0:00:06]} 40. Bxg6 {[%emt 0:00:04]} Nf5+ {[%emt 0:01:21]} 41. gxf5 {[%emt 0:32:14]} fxg6 {[%emt 0:30:18]} 42. Nxe6 {[%emt 0:00:29]} Rh7+ {[%emt 0:00:09]} 43. Kg3 {[%emt 0:02:11]} g5 {[%emt 0:00:00]} 44. Rg4 {[%emt 0:00:00]} 1-0